Cogmind - Beta 13 @@@ ROGUE MODE // 2024.04.01 @ 22:00:38 Player: Bob Surcock Result: Destroyed by EX-DEC with AWS/EX-DEC Performance ------------- Evolutions (0) 0 Regions Visited (3) 600 Robots Destroyed (20) 100 Value Destroyed (287) 287 Prototype IDs (2) 40 Alien Tech Used (0) 0 Bonus (0) 0 TOTAL SCORE: 1027 Bonus ------- None Cogmind --------- Core Integrity 0/250 Matter 179/300 Energy 250/250 System Corruption 1% Temperature Cool (12) Movement Flying (277) Ox3 Location -10/Exiles Parts ------- > --- POWER (1) -------- Ion Engine > --- PROPULSION (2) --- Flight Unit Flight Unit > --- UTILITY (2) ------ Large Storage Unit Targeting Computer > --- WEAPON (2) ------- Grenade Launcher > --- INVENTORY (15) --- Fission Core Peak State ------------ > --- POWER ------------ Ion Engine > --- PROPULSION ------- Flight Unit Flight Unit > --- UTILITY ---------- Large Storage Unit Backup Plating I > --- WEAPON ----------- EM Pulse Gun Grenade Launcher > --- INVENTORY -------- Flight Unit [Rating: 7] Favorites ----------- Power Ion Engine Engine Ion Engine Propulsion Flight Unit Leg Aluminum Leg Wheel Wheel Flight Unit Flight Unit Utility Large Storage Unit Device Seismic Detector Storage Large Storage Unit Processor Targeting Computer Protection Backup Plating I Weapon EM Pulse Gun Energy Gun EM Pulse Gun Ballistic Gun Light Assault Rifle Launcher Grenade Launcher Build | -11 -10 -10 -10 ------- Run | Yrd Mat Min Exi Slots Evolved . | . . . . Power . | . . . . Propulsion . | . . . . Utility . | . . . . Weapon . | . . . . Parts Attached 20 | 5 13 . 2 Power 3 | 1 1 . 1 Engine 3 | 1 1 . 1 Core . | . . . . Reactor . | . . . . Propulsion 8 | 2 5 . 1 Treads . | . . . . Leg 1 | . 1 . . Wheel 2 | 2 . . . Hover . | . . . . Flight 5 | . 4 . 1 Utility 3 | . 3 . . Device 1 | . 1 . . Storage 1 | . 1 . . Processor 1 | . 1 . . Hackware . | . . . . Protection . | . . . . Artifact . | . . . . Weapon 6 | 2 4 . . Energy Gun 4 | 2 2 . . Energy Cannon . | . . . . Ballistic Gun 1 | . 1 . . Ballistic Cannon . | . . . . Launcher 1 | . 1 . . Special Weapon . | . . . . Impact Weapon . | . . . . Slashing Weapon . | . . . . Piercing Weapon . | . . . . Special Melee Weapon . | . . . . Unidentified Prototypes . | . . . . Parts Lost 3 | . 2 . 1 Power . | . . . . Propulsion 2 | . 2 . . Utility . | . . . . Weapon 1 | . . . 1 Highest Loss Streak 1 | . 1 . 1 To Critical Strikes . | . . . . Average Slot Usage (%) 83 | . 77 100 100 Engine 14 | . 14 14 14 Leg 2 | . 4 . . Wheel 2 | . 3 . . Flight 16 | . 12 28 28 Storage 13 | . 13 14 14 Processor 4 | . 1 14 14 Protection 1 | . 1 . . Energy Gun 15 | . 15 14 14 Ballistic Gun 3 | . 4 . . Launcher 7 | . 4 14 14 Naked Turns . | . . . . Heaviest Build 31 | 6 31 30 30 Greatest Support 20 | 20 20 8 8 Greatest Overweight (x) 8 | . 8 3 3 Average Overweight (x) 2 | . 2 3 3 Largest Inventory Capacity 15 | 5 15 15 15 Average Capacity 14 | 5 14 15 15 Most Carried 3 | 2 2 1 3 Average Carried . | . . 1 1 Final Capacity 15 | 5 15 15 15 Final Carried 1 | . 1 1 1 Class Distribution -------------------- 100% | Mutant Dominant Class ---------------- Mutant | -10/Materials Mutant | -10/Mines Mutant | -10/Exiles Resources | -11 -10 -10 -10 ----------- Run | Yrd Mat Min Exi Matter Collected 346 | 103 243 . . Remotely . | . . . . Salvage Created 379 | 32 285 62 . Parts 36 | 1 25 10 . Haulers Intercepted . | . . . . Recyclers Shooed . | . . . . Parts Field Recycled . | . . . . Retrieved Matter . | . . . . Parts Self-Destructed . | . . . . Prevented . | . . . . Kills | -11 -10 -10 -10 ------- Run | Yrd Mat Min Exi Combat Hostiles Destroyed 19 | 1 12 6 . Guns 15 | 1 12 2 . AOE 4 | . . 4 . Classes Destroyed 3 | 1 2 . . Worker 1 | . 1 . . Swarmer 15 | . 9 6 . Grunt 4 | 1 3 . . Best Kill Streak 6 | 1 3 6 . Combat Bots Only 6 | 1 3 6 . Max Kills in Single Turn 3 | 1 1 3 . Gunslinging . | . . . . Exploded 2 | . . 2 . Melee . | . . . . Uniques/NPCs Destroyed . | . . . . Combat | -11 -10 -10 -10 -------- Run | Yrd Mat Min Exi Hostile Shots Fired 105 | 1 91 3 10 Missed 31 | 1 25 2 3 Damage Taken 755 | . 593 56 106 Core 260 | . 226 7 27 Absorbed by Shields . | . . . . Regen/Repaired (Parts) 61 | . 61 . . Core Remaining (%) 100 | 100 . . . Volleys Fired 44 | 1 37 4 2 Largest 2 | 2 2 2 2 Hottest 90 | 90 90 70 70 Shots Fired 75 | 2 61 8 4 Gun 69 | 2 61 4 2 Cannon . | . . . . Launcher 6 | . . 4 2 Special . | . . . . Kinetic 13 | . 13 . . Thermal 50 | 2 48 . . Explosive 6 | . . 4 2 Electromagnetic 6 | . . 4 2 Robot Hit Streak 10 | 2 10 4 4 Robot Miss Streak 5 | . 5 1 1 Penetration Max . | . . . . Secondary Targets . | . . . . Shots Hit Robots 42 | 2 33 5 2 Core Hits 27 | 2 17 5 3 Critical Kills . | . . . . Critical Parts Destroyed . | . . . . Critical Strikes 2 | . 2 . . Burn 2 | . 2 . . Melee Attacks . | . . . . Impact . | . . . . Slashing . | . . . . Piercing . | . . . . Sneak Attacks . | . . . . Combat Hostiles . | . . . . Follow-up Attacks . | . . . . Damage Inflicted 682 | 23 373 224 62 Guns 443 | 23 373 46 1 Cannons . | . . . . Explosions 237 | . . 176 61 Melee . | . . . . Ramming 2 | . . 2 . Kinetic 66 | . 66 . . Thermal 376 | 23 307 46 . Explosive 191 | . . 130 61 Electromagnetic 47 | . . 46 1 Impact . | . . . . Slashing . | . . . . Piercing . | . . . . Highest Corruption 1 | . 1 1 1 Average Corruption 1 | . 1 1 1 Corruption Purged . | . . . . Corruption Blocked . | . . . . Effects 15 | . 12 . 3 Message Errors 5 | . 3 . 2 Matter Fused 2 | . 2 . . Heat Flow Errors 1 | . 1 . . Energy Discharges 2 | . 2 . . Parts Rejected 1 | . 1 . . Data Loss (minor) 1 | . 1 . . Misfires 3 | . 2 . 1 Overload Shots . | . . . . Overflow Damage 20 | . . 20 . Projectiles . | . . . . Explosions 20 | . . 20 . Melee . | . . . . Knockbacks . | . . . . Impact . | . . . . Kinetic . | . . . . Secondary . | . . . . Self-Inflicted Damage 60 | . . 42 18 Shots 3 | . . 2 1 Rammed 2 | . 1 1 . Targets Rammed 2 | . 1 1 . Kicked . | . . . . Crushed . | . . . . Highest Temperature 326 | 30 326 45 15 Average Temperature 61 | 17 68 21 8 Received Heat Transfer 108 | . 108 . . Effects 1 | . 1 . . Interference 1 | . 1 . . Siege Activations . | . . . . Robots Corrupted . | . . . . Combat Hostiles . | . . . . Parts Fried . | . . . . Impact Corruptions . | . . . . Robots Melted . | . . . . Combat Hostiles . | . . . . Parts Melted 1 | . 1 . . Heat Transferred 1175 | 62 1013 100 . Parts Sabotaged . | . . . . Parts Stolen . | . . . . Parts Stripped . | . . . . Power Chain Reactions 1 | . . 1 . Alert | -11 -10 -10 -10 ------- Run | Yrd Mat Min Exi Peak Influence 235 | 20 235 182 . Initial 13 | . 13 7 . Average 81 | 1 74 171 . Maximum Alert Level 1 | . 1 . . Low Security (%) 92 | 100 90 100 . Level 1 7 | . 9 . . Level 2 . | . . . . Level 3 . | . . . . Level 4 . | . . . . Level 5 . | . . . . High Security . | . . . . Max Security . | . . . . Squads Dispatched 3 | . 3 . . Investigation 1 | . 1 . . Extermination . | . . . . Reinforcement 2 | . 2 . . Assault . | . . . . Garrison . | . . . . Intercept . | . . . . Searches Triggered . | . . . . Construction Impeded . | . . . . Haulers Reinforced . | . . . . Active Scanning Responses . | . . . . Cargo Convoy Interrupts . | . . . . Stealth | -11 -10 -10 -10 --------- Run | Yrd Mat Min Exi Distress Signals 1 | . 1 . . Communications Jammed . | . . . . Distress Signals . | . . . . Times Spotted 24 | 1 17 3 3 Peak Tracking Total 12 | 1 3 3 12 Tactical Retreats 1 | . . . 1 Traps | -11 -10 -10 -10 ------- Run | Yrd Mat Min Exi Traps Triggered . | . . . . Indirectly . | . . . . Trap Hack Attempts . | . . . . Triggered . | . . . . Disarmed . | . . . . Reprogrammed . | . . . . Reused . | . . . . Traps Extracted . | . . . . Installed . | . . . . Triggered . | . . . . Machines | -11 -10 -10 -10 ---------- Run | Yrd Mat Min Exi Machines Disabled 2 | . . . 2 Max in Single Turn 1 | . . . 1 Machines Repaired . | . . . . Machines Dismantled . | . . . . Machines Sabotaged . | . . . . Overloaded Fab Kills . | . . . . Hacking | -11 -10 -10 -10 --------- Run | Yrd Mat Min Exi Machines Accessed 3 | . 3 . . Terminals 1 | . 1 . . Fabricators . | . . . . Repair Stations 1 | . 1 . . Recycling Units 1 | . 1 . . Scanalyzers . | . . . . Garrison Access . | . . . . Total Hacks 14 | . 14 . . Successful 10 | . 10 . . Failed 4 | . 4 . . Catastrophic . | . . . . Database Lockouts . | . . . . Manual . | . . . . Terminals 7 | . 7 . . Fabricators . | . . . . Repair Stations 4 | . 4 . . Recycling Units 3 | . 3 . . Scanalyzers . | . . . . Garrison Access . | . . . . Terminal Hacks 6 | . 6 . . Record 3 | . 3 . . Prototype ID Bank 1 | . 1 . . Hauler Manifests 1 | . 1 . . Zone Layout 1 | . 1 . . Fabricator Hacks . | . . . . Repair Station Hacks 3 | . 3 . . Scan Component 1 | . 1 . . Repair 1 | . 1 . . Refit 1 | . 1 . . Recycling Unit Hacks 1 | . 1 . . Process 1 | . 1 . . Scanalyzer . | . . . . Garrison Access Hacks . | . . . . Unauthorized Hacks . | . . . . Terminals . | . . . . Fabricators . | . . . . Repair Stations . | . . . . Recycling Units . | . . . . Scanalyzers . | . . . . Garrison Access . | . . . . Data Cores Recovered . | . . . . Used . | . . . . Hacking Detections 1 | . 1 . . Full Trace Events 1 | . 1 . . Feedback Events 1 | . 1 . . Corruption 1 | . 1 . . Feedback Blocked . | . . . . Robot Schematics Acquired . | . . . . Robots Built . | . . . . Authchips . | . . . . Time . | . . . . Total Robot Build Rating . | . . . . Part Schematics Acquired . | . . . . Parts Built . | . . . . Authchips . | . . . . Time . | . . . . Total Part Build Rating . | . . . . Parts Repaired 1 | . 1 . . Time 26 | . 26 . . Parts Recycled . | . . . . Recycled Matter 114 | . 114 . . Retrieved Matter . | . . . . Retrieved Components . | . . . . Parts Scanalyzed . | . . . . Part Schematics Acquired . | . . . . Parts Damaged . | . . . . Bothacking | -11 -10 -10 -10 ------------ Run | Yrd Mat Min Exi Used RIF Installer . | . . . . Robots Hacked . | . . . . Non-combat . | . . . . Combat . | . . . . Robot Hacks Applied . | . . . . Relay Couplers Released . | . . . . Fabnet Peak Effective % . | . . . . Robots Rewired . | . . . . Allies Hacked . | . . . . Hacks Repelled . | . . . . Allies | -11 -10 -10 -10 -------- Run | Yrd Mat Min Exi Total Allies . | . . . . Largest Group . | . . . . Highest-Rated Group . | . . . . Highest-Rated Ally . | . . . . Total Orders . | . . . . Ally Attacks . | . . . . Total Damage . | . . . . Kills . | . . . . Allies Corrupted . | . . . . Allies Melted . | . . . . Intel | -11 -10 -10 -10 ------- Run | Yrd Mat Min Exi Robot Analysis Total . | . . . . Derelict Logs Recovered . | . . . . Drone Launches . | . . . . Drone Recoveries . | . . . . Exploration | -11 -10 -10 -10 ------------- Run | Yrd Mat Min Exi Turns Passed 1658 | 53 1148 137 320 Spaces Moved 631 | 57 417 45 112 Core 45 | 20 25 . . Treads . | . . . . Legs 108 | . 108 . . Wheels 141 | 37 104 . . Hover . | . . . . Flight 337 | . 180 45 112 Fastest Speed 50 | 50 80 277 277 Average Speed 235 | 69 243 277 277 Slowest Speed 530 | 80 530 277 277 Overloaded Moves . | . . . . Propulsion Burnouts . | . . . . Robots Hopped . | . . . . Cave-ins Triggered . | . . . . Exploration Rate (%) 24 | 6 40 13 38 Regions Visited 3 Branch Regions 2 Pre-discovered Areas . | . . . . Known Exits Taken . | . . . . Unknown Exits Taken 3 | 1 1 1 . Scrap Searched . | . . . . Spaces Dug . | . . . . Terrain Destroyed 53 | . . 45 8 Melee . | . . . . Projectile . | . . . . AOE 53 | . . 45 8 Terrain Rammed . | . . . . Walls Destroyed . | . . . . Machines Disabled . | . . . . Actions | -11 -10 -10 -10 --------- Run | Yrd Mat Min Exi Total 734 | 68 497 49 120 Wait 8 | . 8 . . Move 629 | 57 416 44 112 Hop . | . . . . Pick Up 21 | 5 14 . 2 Fast Attach . | . . . . Attach 19 | 5 12 . 2 Detach . | . . . . Swap 1 | . 1 . . Drop 10 | . 8 . 2 Fire 44 | 1 37 4 2 Melee . | . . . . Ram 2 | . 1 1 . Kick . | . . . . Crush . | . . . . Escape Stasis . | . . . . Rewire . | . . . . Trap . | . . . . Miscellaneous . | . . . . Route ------- -11/Scrapyard -10/Materials -10/Mines (discovered 2 exits: [*Mat] / [*Exi]) -10/Exiles (discovered 1 exit: [*Min]) History --------- Turn | Location | Event 2 | -11/Scrapyard | Met Revision 17 44 | -11/Scrapyard | Discovered new exit (range 8) 54 | -11/Scrapyard | Entered Materials 321 | -10/Materials | Build established: Mutant 330 | -10/Materials | Core integrity fell below 50% 623 | -10/Materials | Repaired Lgt. Assault Rifle? 695 | -10/Materials | Core integrity fell below 20% 1127 | -10/Materials | Discovered new exit (range 12) 1202 | -10/Materials | Entered Mines 1287 | -10/Mines | Discovered new exit (range 15) 1325 | -10/Mines | Deemed a non-threat by the Exiles lab entrance 1328 | -10/Mines | Discovered new exit (range 5) 1339 | -10/Mines | Entered Exiles 1392 | -10/Exiles | Discovered new exit (range 15) 1464 | -10/Exiles | Met 8R-AWN 1516 | -10/Exiles | Met EX-HEX 1619 | -10/Exiles | Met EX-DEC 1648 | -10/Exiles | Attacked by the Exiles 1659 | -10/Exiles | Destroyed by EX-DEC with AWS/EX-DEC Last Messages --------------- The Zionites will tell you those Marauders at the gates are defenses set up by Warlord... Nope, the Imprinter put them there mostly to keep us out! Anyway, I've got to get back to poking and prodding these nasty little guys. Go see BIN. I can't imagine you'll want to stay in our boring little cave for long, and we could use some help with the project in the back. 01608_ ,Z%4WZYFNHB>ZE9:%LW/3 WLX EX-DEC: Ah I see we have a visitor. One wrong move in here and I'll invert your atomic chain! 01621_ EX-DEC: "Oops, I hope HEX didn't hear that..." 01624_ 8O3HL |4#LFL99JWTUC 2 01647_ System corrupted: FCS attempts to trigger EM Pulse Gun. 01647_ System corrupted: EM Pulse Gun misfires. 01647_ Machine disabled. 01648_ EXILES: Hostile robot within lab perimeter. Defensive protocols time, folks! 01655_ Machine disabled. 01657_ EM Pulse Gun destroyed. Map ----- +----------------------------------------------------+ | ????????????????????? ?????????????? | | ??????????????????? ?????????????? | | ?????????????????? ????????????? | | ?????????????????"" ?????????????? | | ????????????????" ????????????? | | ????????????????" "????????????""" | | ????????????????"" """????????????#""" | | ???????????????"" """#????????????#"""" | | ???????????????"" ""????????????##"" | | ??????????????"" ########??####"""" | | ??????????????""" ## ####""" | | ???????????????" """" | | ???????????????"" | | ??????????????#"""" | | ???????????????# | | ??????????????##" " "" | | ??????????????# a ""## ##""" " " | | ??????????????## ""#### ######""" | | ??????????????# a"""##??# #????###" | | ??????????????? """#???# #??????## | | ???????????????## a ""##???! ???????? | | ????????????????#"" """##???#" ??????? | | ????????????????##"" ##????#" ??????? | | ?????????????????##"" c ##?????#!!""!"?????? | | ??????????????????### #??????#######?????? | | ????????????????????#####@ ##??????????????????? | | ????????????????????????## #???????????????????? | | ?????????????????????????# #???????????????????? | | ?????????????????????????# #???????????????????? | | ?????????????????????????? #???????????????????? | | ?????????????????????????? #???????????????????? | | ?????????????????????????? #???????????????????? | | ?????????????????????????? #???????????????????? | | ?????????????????????????? #???????????????????? | | ??????????????????????????? #???????????????????? | | ??????????????????????????? #???????????????????? | | ??????????????????????????? #???????????????????? | | ??????????????????????????? "???????????????????? | | ????????????????????????????? ???????????????????? | | ?????????????????????????????????????????????????? | | ?????????????????????????????????????????????????? | | ?????????????????????????????????????????????????? | | ?????????????????????????????????????????????????? | | ?????????????????????????????????????????????????? | | ?????????????????????????????????????????????????? | | ?????????????????????????????????????????????????? | | ?????????????????????????????????????????????????? | | ?????????????????????????????????????????????????? | | ?????????????????????????????????????????????????? | | ?????????????????????????????????????????????????? | +----------------------------------------------------+ Best States ------------- Heat Dissipation 25 Energy Generation 10 Energy Capacity 250 Matter Stores 300 Matter Capacity 300 Sight Range 16 Terrain Scan Density 10 Armor Coverage 80 Evasion (%) 50 Targeting Accuracy 5 Item Schematics ----------------- None Robot Schematics ------------------ None Fabricated ------------ Nothing Alien Tech Used ----------------- None Achievements -------------- Part-time Mechanic Shopping List Storm Trooper Uninvited Guest Challenges ------------ None Game ------ Seed TerrainStasisLegs Manual? 0 Play Time 00:15:08 Cumulative 1.0 hours Start 2024.04.01 @ 21:46:44 End 2024.04.01 @ 22:00:38 Sessions 1 Manual Loads 0 Difficulty Rogue Special Mode None Game No. 2 Rogue 2 Adventurer 0 Explorer 0 Win Type - Total 0 Types 0/0/0/0/0/0/0/0/0 Lore% 3 Gallery% 3 Achievement% 5 Wizard Run 0 Options --------- Layout 2 ASCII 0 Keyboard 0 Movement Mouse Keybinds 0 Fullscreen 0 Font 28/SmallcapsGlow Map View 59x48 Zoom Use 0% Tactical HUD 1 Map Filters NONE Filters NONE Steam 1 RUN: ea83a939-18b0-45ae-ae38-3badc8b7782e